Cogmind - Beta 17 @@@ ROGUE MODE // 2026.08.16 @ 00:26:17 Player: Chris Result: Destroyed by S-27 Virus with Autogun Performance ------------- Evolutions (4) 2000 Regions Visited (6) 1200 Robots Destroyed (4) 20 Value Destroyed (123) 123 Prototype IDs (0) 0 Alien Tech Used (0) 0 Bonus (0) 0 TOTAL SCORE: 3343 Bonus ------- None Cogmind --------- Core Integrity 0/850 Matter 210/300 Energy 99/100 System Corruption 0% Temperature Cool (0) Movement Core (50) Location -6/Lower Caves Parts ------- > --- POWER (2) -------- (None) > --- PROPULSION (3) --- (None) > --- UTILITY (4) ------ (None) > --- WEAPON (6) ------- (None) > --- INVENTORY (5) ---- Ion Engine Aluminum Leg Small Storage Unit Subdweller Shrapnel Launcher Mining Laser Peak State ------------ > --- POWER ------------ Light Nuclear Core > --- PROPULSION ------- Aluminum Leg Aluminum Leg Flexi-carbon Leg > --- UTILITY ---------- Small Storage Unit Huge Storage Unit Terrain Scanner > --- WEAPON ----------- Proton Cannon > --- INVENTORY -------- Ion Engine Light Treads Aluminum Leg Experimental Sensor Array Subdweller Machine Gun Subdweller Shrapnel Launcher Mining Laser Mining Laser [Rating: 19] Favorites ----------- Power Light Nuclear Core Engine Ion Engine Power Core Light Nuclear Core Propulsion Aluminum Leg Treads Light Treads Leg Aluminum Leg Hover Unit Hover Unit Utility Terrain Scanner Device Terrain Scanner Storage Small Storage Unit Weapon Assault Rifle Energy Cannon Proton Cannon Ballistic Gun Assault Rifle Launcher Subdweller Shrapnel Launcher Build | -11 -10 -10 -10 -9 -6 -6 ------- Run | Yrd Mat Min Sub Scr Fac Low Slots Evolved 8 | . . . . . 8 . Power 1 | . . . . . 1 . Propulsion 1 | . . . . . 1 . Utility 2 | . . . . . 2 . Weapon 4 | . . . . . 4 . Parts Attached 20 | 6 3 4 2 . 5 . Power 2 | 1 . 1 . . . . Engine 1 | 1 . . . . . . Core 1 | . . 1 . . . . Reactor . | . . . . . . . Propulsion 10 | 2 2 3 . . 3 . Treads 3 | 2 . . . . 1 . Leg 5 | . . 3 . . 2 . Wheel . | . . . . . . . Hover 2 | . 2 . . . . . Flight . | . . . . . . . Utility 3 | 1 1 . . . 1 . Device 1 | . 1 . . . . . Storage 2 | 1 . . . . 1 . Processor . | . . . . . . . Hackware . | . . . . . . . Protection . | . . . . . . . Artifact . | . . . . . . . Weapon 5 | 2 . . 2 . 1 . Energy Gun . | . . . . . . . Energy Cannon 1 | . . . . . 1 . Ballistic Gun 3 | 2 . . 1 . . . Ballistic Cannon . | . . . . . . . Launcher 1 | . . . 1 . . . Special Weapon . | . . . . . . . Impact Weapon . | . . . . . . . Slashing Weapon . | . . . . . . . Piercing Weapon . | . . . . . . . Special Melee Weapon . | . . . . . . . Unidentified Prototypes . | . . . . . . . Parts Lost 10 | . . . 2 . 8 . Power 1 | . . . . . 1 . Propulsion 5 | . . . . . 5 . Utility 1 | . . . . . 1 . Weapon 3 | . . . 2 . 1 . Highest Loss Streak 4 | . . . 2 . 4 . To Critical Strikes . | . . . . . . . Average Backups 5 | . . 5 7 7 6 5 Power . | . . . 1 1 1 1 Propulsion 1 | . . 2 3 2 1 1 Utility . | . . . 1 1 1 1 Weapon 2 | . . 2 2 3 2 2 Tool/Special . | . . . . . . . Unused Backups 3 | . . . . . 2 1 Power . | . . . . . . . Propulsion . | . . . . . . . Utility 1 | . . . . . 1 . Weapon 2 | . . . . . 1 1 Tool/Special . | . . . . . . . Average Slot Usage (%) 61 | . 92 99 93 73 23 . Engine 3 | . 14 4 . . . . Core 5 | . . 9 14 14 2 . Treads 2 | . 11 . . . . . Leg 13 | . . 14 28 28 11 . Hover 4 | . 16 12 . . . . Device 7 | . 7 14 14 14 2 . Storage 9 | . 14 14 14 14 2 . Ballistic Gun 10 | . 28 28 14 1 . . Launcher 1 | . . . 7 1 . . Peak Build Rating 19 | 6 7 10 12 12 19 . Average Rating 8 | 3 6 9 10 8 10 . On Entrance 6 | . 6 7 10 12 8 . Avg Prop Armor Cover (%) 6 | . . 6 . . . . Naked Turns 94 | . . . . . 65 29 Heaviest Build 94 | 13 14 14 23 23 94 . Greatest Support 40 | 40 40 20 20 20 40 3 Greatest Overweight (x) 2 | . 2 1 1 1 2 . Average Overweight (x) . | . . . . . . . Largest Inventory Capacity 25 | 8 8 8 8 8 25 5 Average Capacity 9 | 5 8 8 8 8 11 5 Most Carried 9 | . 3 8 7 8 9 5 Average Carried 5 | . . 5 7 7 6 5 Final Capacity 8 | 8 8 8 8 8 5 5 Final Carried 8 | . 3 7 7 8 5 5 Class Distribution -------------------- 92% | Mutant 7% | Scavenger-Mutant Dominant Class ---------------- Mutant | -10/Materials Mutant | -10/Mines Scavenger-Mutant | -10/Subcaves Mutant | -9/Scraptown Mutant | -6/Factory Mutant | -6/Lower Caves Resources | -11 -10 -10 -10 -9 -6 -6 ----------- Run | Yrd Mat Min Sub Scr Fac Low Matter Collected 364 | 163 11 103 87 . . . Remotely . | . . . . . . . Salvage Created 127 | . 24 103 . . . . Parts 13 | . 8 5 . . . . Haulers Intercepted . | . . . . . . . Recyclers Shooed . | . . . . . . . Parts Field Recycled . | . . . . . . . Retrieved Matter . | . . . . . . . Parts Self-Destructed 2 | . . . 2 . . . Prevented . | . . . . . . . Parts Restored . | . . . . . . . Kills | -11 -10 -10 -10 -9 -6 -6 ------- Run | Yrd Mat Min Sub Scr Fac Low Combat Hostiles Destroyed 2 | . . 2 . . . . Guns 2 | . . 2 . . . . Classes Destroyed 2 | . 1 1 . . . . Watcher 2 | . 2 . . . . . Grunt 2 | . . 2 . . . . Best Kill Streak 2 | . 1 2 . . . . Combat Bots Only 2 | . . 2 . . . . Max Kills in Single Turn 1 | . 1 1 . . . . Gunslinging . | . . . . . . . Exploded . | . . . . . . . Melee . | . . . . . . . Uniques/NPCs Destroyed . | . . . . . . . Combat | -11 -10 -10 -10 -9 -6 -6 -------- Run | Yrd Mat Min Sub Scr Fac Low Hostile Shots Fired 240 | . 8 29 20 . 177 6 Missed 95 | . 4 6 11 . 71 3 Hits 145 | . 4 23 9 . 106 3 Projectile 145 | . 4 23 9 . 106 3 Critical Strikes 5 | . . 2 . . 3 . Damage Taken 2380 | . 62 305 199 . 1773 41 Core 1000 | . 18 92 40 . 809 41 Absorbed by Shields . | . . . . . . . Core Remaining (%) 70 | 100 . . . 40 . . Volleys Fired 24 | . 10 12 1 . 1 . Largest 2 | . 2 2 2 . 1 . Hottest 75 | . 40 40 40 . 75 . Shots Fired 47 | . 20 24 2 . 1 . Gun 46 | . 20 24 2 . . . Cannon 1 | . . . . . 1 . Launcher . | . . . . . . . Special . | . . . . . . . Kinetic 46 | . 20 24 2 . . . Thermal . | . . . . . . . Explosive . | . . . . . . . Electromagnetic 1 | . . . . . 1 . Robot Hit Streak 5 | . 4 5 1 . . . Robot Miss Streak 4 | . 4 2 1 . 1 . Penetration Max . | . . . . . . . Secondary Targets 2 | . 1 1 . . . . Max Gunslinging Chain 1 | . 1 1 . . . . Shots Hit Robots 26 | . 12 13 1 . . . Core Hits 11 | . 4 5 . . 2 . Critical Kills . | . . . . . . . Critical Parts Destroyed 1 | . 1 . . . . . Critical Strikes 1 | . 1 . . . . . Destroy 1 | . 1 . . . . . Melee Attacks . | . . . . . . . Impact . | . . . . . . . Slashing . | . . . . . . . Piercing . | . . . . . . . Sneak Attacks . | . . . . . . . Combat Hostiles . | . . . . . . . Follow-up Attacks . | . . . . . . . Damage Inflicted 289 | . 129 126 8 . 26 . Guns 263 | . 129 126 8 . . . Cannons . | . . . . . . . Explosions . | . . . . . . . Melee . | . . . . . . . Ramming 26 | . . . . . 26 . Kinetic 263 | . 129 126 8 . . . Thermal . | . . . . . . . Explosive . | . . . . . . . Electromagnetic . | . . . . . . . Impact . | . . . . . . . Slashing . | . . . . . . . Piercing . | . . . . . . . Highest Corruption . | . . . . . . . Average Corruption . | . . . . . . . Corruption Purged . | . . . . . . . Corruption Blocked . | . . . . . . . Overload Shots . | . . . . . . . Overflow Damage . | . . . . . . . Projectiles . | . . . . . . . Explosions . | . . . . . . . Melee . | . . . . . . . Knockbacks . | . . . . . . . Impact . | . . . . . . . Kinetic . | . . . . . . . Secondary . | . . . . . . . Self-Inflicted Damage 11 | . . . . . 11 . Shots . | . . . . . . . Rammed 4 | . . . . . 4 . Targets Rammed 7 | . . . . . 7 . Kicked 3 | . . . . . 3 . Crushed . | . . . . . . . Highest Temperature 107 | . 17 107 . . 21 . Average Temperature 34 | . 6 50 . . 11 . Received Heat Transfer 792 | . 36 207 . . 549 . Siege Activations . | . . . . . . . Martial Activations . | . . . . . . . Shielding Activations . | . . . . . . . Robots Disrupted . | . . . . . . . Combat Hostiles . | . . . . . . . Robots Corrupted . | . . . . . . . Combat Hostiles . | . . . . . . . Parts Fried . | . . . . . . . Impact Corruptions . | . . . . . . . Robots Melted . | . . . . . . . Combat Hostiles . | . . . . . . . Parts Melted . | . . . . . . . Heat Transferred . | . . . . . . . Parts Sabotaged . | . . . . . . . Parts Stolen . | . . . . . . . Parts Stripped . | . . . . . . . Power Chain Reactions . | . . . . . . . Alert | -11 -10 -10 -10 -9 -6 -6 ------- Run | Yrd Mat Min Sub Scr Fac Low Maximum Alert Level . | . . . . . . . Low Security (%) 100 | 100 100 100 . . 100 . Level 1 . | . . . . . . . Level 2 . | . . . . . . . Level 3 . | . . . . . . . Level 4 . | . . . . . . . Level 5 . | . . . . . . . High Security . | . . . . . . . Max Security . | . . . . . . . Peak Influence 87 | . 7 50 . . 87 . Initial 2 | . . 2 . . . . Average 14 | . . 8 . . 23 . Influence Increases 304 | . 14 50 . . 240 . Destroy 0b10 Robot/C 40 | . . 40 . . . . Destroy 0b10 Robot/NC 10 | . 10 . . . . . Destroy Leader 14 | . 4 10 . . . . Disable Machine 15 | . . . . . 15 . Partial Spotted 30 | . . . . . 30 . Lose Combat Pursuer 195 | . . . . . 195 . Influence Decreases 268 | . 7 57 . . 165 39 Entered New Map 34 | . . 5 . . . 29 Time Decay 194 | . 7 52 . . 125 10 Lost Part 40 | . . . . . 40 . Squads Dispatched 2 | . . . . . 2 . Investigation . | . . . . . . . Extermination 1 | . . . . . 1 . Reinforcement 1 | . . . . . 1 . Assault . | . . . . . . . Garrison . | . . . . . . . Intercept . | . . . . . . . Searches Triggered . | . . . . . . . Construction Impeded . | . . . . . . . Haulers Reinforced . | . . . . . . . Active Scanning Responses . | . . . . . . . Cargo Convoy Interrupts . | . . . . . . . Stealth | -11 -10 -10 -10 -9 -6 -6 --------- Run | Yrd Mat Min Sub Scr Fac Low Distress Signals 1 | . 1 . . . . . Communications Jammed . | . . . . . . . Distress Signals . | . . . . . . . Times Spotted 35 | . 4 2 7 . 19 3 Peak Tracking Total 8 | . 3 2 6 . 8 3 Tactical Retreats 5 | . . . . . 5 . Traps | -11 -10 -10 -10 -9 -6 -6 ------- Run | Yrd Mat Min Sub Scr Fac Low Traps Triggered . | . . . . . . . Indirectly . | . . . . . . . Trap Hack Attempts . | . . . . . . . Triggered . | . . . . . . . Disarmed . | . . . . . . . Reprogrammed . | . . . . . . . Reused . | . . . . . . . Traps Extracted . | . . . . . . . Installed . | . . . . . . . Triggered . | . . . . . . . Machines | -11 -10 -10 -10 -9 -6 -6 ---------- Run | Yrd Mat Min Sub Scr Fac Low Machines Disabled 1 | . . . . . 1 . Max in Single Turn 1 | . . . . . 1 . Machines Repaired . | . . . . . . . Machines Dismantled . | . . . . . . . Machines Sabotaged . | . . . . . . . Overloaded Fab Kills . | . . . . . . . Hacking | -11 -10 -10 -10 -9 -6 -6 --------- Run | Yrd Mat Min Sub Scr Fac Low Machines Accessed 1 | . 1 . . . . . Terminals 1 | . 1 . . . . . Fabricators . | . . . . . . . Repair Stations . | . . . . . . . Recycling Units . | . . . . . . . Scanalyzers . | . . . . . . . Garrison Access . | . . . . . . . Total Hacks 1 | . 1 . . . . . Successful 1 | . 1 . . . . . Failed . | . . . . . . . Catastrophic . | . . . . . . . Database Lockouts . | . . . . . . . Manual . | . . . . . . . Terminals 1 | . 1 . . . . . Fabricators . | . . . . . . . Repair Stations . | . . . . . . . Recycling Units . | . . . . . . . Scanalyzers . | . . . . . . . Garrison Access . | . . . . . . . Terminal Hacks 1 | . 1 . . . . . Zone Layout 1 | . 1 . . . . . Fabricator Hacks . | . . . . . . . Repair Station Hacks . | . . . . . . . Recycling Unit Hacks . | . . . . . . . Scanalyzer . | . . . . . . . Garrison Access Hacks . | . . . . . . . Unauthorized Hacks . | . . . . . . . Terminals . | . . . . . . . Fabricators . | . . . . . . . Repair Stations . | . . . . . . . Recycling Units . | . . . . . . . Scanalyzers . | . . . . . . . Garrison Access . | . . . . . . . Data Cores Recovered . | . . . . . . . Used . | . . . . . . . Hacking Detections . | . . . . . . . Full Trace Events . | . . . . . . . Feedback Events . | . . . . . . . Feedback Blocked . | . . . . . . . Robot Schematics Acquired . | . . . . . . . Robots Built . | . . . . . . . Authchips . | . . . . . . . Time . | . . . . . . . Total Robot Build Rating . | . . . . . . . Part Schematics Acquired . | . . . . . . . Parts Built . | . . . . . . . Authchips . | . . . . . . . Time . | . . . . . . . Total Part Build Rating . | . . . . . . . Part Studies Acquired . | . . . . . . . Parts Repaired . | . . . . . . . Time . | . . . . . . . Parts Recycled . | . . . . . . . Recycled Matter . | . . . . . . . Retrieved Matter . | . . . . . . . Retrieved Components . | . . . . . . . Parts Scanalyzed . | . . . . . . . Part Schematics Acquired . | . . . . . . . Parts Damaged . | . . . . . . . Bothacking | -11 -10 -10 -10 -9 -6 -6 ------------ Run | Yrd Mat Min Sub Scr Fac Low Used RIF Installer . | . . . . . . . Robots Hacked . | . . . . . . . Non-combat . | . . . . . . . Combat . | . . . . . . . Robot Hacks Applied . | . . . . . . . Relay Couplers Released . | . . . . . . . Fabnet Peak Effective % . | . . . . . . . Robots Rewired . | . . . . . . . Allies Hacked . | . . . . . . . Hacks Repelled . | . . . . . . . Allies | -11 -10 -10 -10 -9 -6 -6 -------- Run | Yrd Mat Min Sub Scr Fac Low Total Allies . | . . . . . . . Largest Group . | . . . . . . . Highest-Rated Group . | . . . . . . . Highest-Rated Ally . | . . . . . . . Total Orders . | . . . . . . . Ally Attacks . | . . . . . . . Total Damage . | . . . . . . . Kills . | . . . . . . . Allies Corrupted . | . . . . . . . Allies Melted . | . . . . . . . Intel | -11 -10 -10 -10 -9 -6 -6 ------- Run | Yrd Mat Min Sub Scr Fac Low Active Infowar (turns) 1235 | . 167 269 258 214 327 . Terrain 1235 | . 167 269 258 214 327 . Robot Analysis Total . | . . . . . . . Derelict Logs Recovered . | . . . . . . . Drone Launches . | . . . . . . . Drone Recoveries . | . . . . . . . Exploration | -11 -10 -10 -10 -9 -6 -6 ------------- Run | Yrd Mat Min Sub Scr Fac Low Turns Passed 1956 | 111 318 269 258 214 757 29 Spaces Moved 1361 | 67 214 139 143 176 565 57 Core 182 | 4 . . . . 121 57 Treads 191 | 63 69 . . . 59 . Legs 774 | . . 70 143 176 385 . Wheels . | . . . . . . . Hover 214 | . 145 69 . . . . Flight . | . . . . . . . Fastest Speed 50 | 50 116 116 120 120 50 50 Average Speed 129 | 153 132 120 155 121 130 50 Slowest Speed 260 | 160 200 190 190 190 260 50 Overloaded Moves . | . . . . . . . Propulsion Burnouts . | . . . . . . . Robots Hopped . | . . . . . . . Potential Cave-ins . | . . . . . . . Cave-ins Triggered . | . . . . . . . Exploration Rate (%) 16 | 3 32 26 11 19 14 10 Regions Visited 6 Branch Regions 4 Pre-discovered Areas . | . . . . . . . Known Exits Taken . | . . . . . . . Unknown Exits Taken 6 | 1 1 1 1 1 1 . Scrap Searched . | . . . . . . . Spaces Dug . | . . . . . . . Terrain Destroyed . | . . . . . . . Melee . | . . . . . . . Projectile . | . . . . . . . AOE . | . . . . . . . Terrain Rammed . | . . . . . . . Walls Destroyed . | . . . . . . . Machines Disabled . | . . . . . . . Actions | -11 -10 -10 -10 -9 -6 -6 --------- Run | Yrd Mat Min Sub Scr Fac Low Total 1510 | 72 230 218 176 178 579 57 Wait 90 | . . 59 31 . . . Move 1355 | 66 213 138 142 175 564 57 Hop . | . . . . . . . Pick Up 3 | . 2 1 . . . . Fast Attach 14 | 6 1 . 2 . 5 . Attach 3 | . 1 2 . . . . Detach 6 | . 1 2 . 2 1 . Swap 6 | . 2 4 . . . . Drop 2 | . . . . 1 1 . Fire 24 | . 10 12 1 . 1 . Melee . | . . . . . . . Ram 4 | . . . . . 4 . Kick 3 | . . . . . 3 . Crush . | . . . . . . . Escape Stasis . | . . . . . . . Rewire . | . . . . . . . Trap . | . . . . . . . Miscellaneous . | . . . . . . . Route ------- -11/Scrapyard -10/Materials -10/Mines -10/Subcaves -9/Scraptown -6/Factory -6/Lower Caves History --------- Turn | Location | Event 65 | -11/Scrapyard | Discovered new exit (range 16) 112 | -11/Scrapyard | Entered Materials 303 | -10/Materials | Build established: Mutant 379 | -10/Materials | Discovered new exit (range 13) 430 | -10/Materials | Entered Mines 458 | -10/Mines | Found a damaged Exp. Sensor Array with a note attached 460 | -10/Mines | Found Prototype Device 611 | -10/Mines | Discovered new exit (range 13) 699 | -10/Mines | Entered Subcaves 700 | -10/Subcaves | Approached by a straggling Scientist 735 | -10/Subcaves | Ambushed by swarm of Subdwellers 746 | -10/Subcaves | Core integrity fell below 50% 954 | -10/Subcaves | Scientist uncovered a shortcut to Scraptown 957 | -10/Subcaves | Entered Scraptown 1163 | -9/Scraptown | Discovered new exit (range 5) 1171 | -9/Scraptown | Entered Factory 1171 | -6/Factory | Evolved 8 slots: Power x1, Propulsion x1, Utility x2, Weapon x4 1529 | -6/Factory | Lost 4 parts (1p2n1u) 1768 | -6/Factory | Core integrity fell below 50% 1894 | -6/Factory | Core integrity fell below 20% 1919 | -6/Factory | Discovered new exit (range 14) 1928 | -6/Factory | Entered Lower Caves 1933 | -6/Lower Caves | Encountered a Warlord checkpoint 1957 | -6/Lower Caves | Destroyed by S-27 Virus with Autogun Last Messages --------------- 01887_ Slug penetrates Wall. 01887_ Penetrated by Slug. 01889_ U-05 Engineer works on Construction Platform. 01890_ Penetrated by Slug. 01893_ Slug penetrates Wall. 01895_ Penetrated by Slug. 01895_ Med. Treads destroyed. 01896_ Penetrated by Slug. 01910_ Slammed into K-01 Serf. 01912_ O-16 Technician: "IFF HANDSHAKE FAILED. SECURING TERMINAL." 01918_ ALERT: Hostiles spotted, dispatching reinforcements to Terminal F007. 01919_ EXIT=FOUND 01921_ Slammed into K-01 Serf. LOCATION=UNKNOWN GOAL=ESCAPE 01933_ UD-KMJ(M): "Unaware activity is slow around here lately. Bring on the action!" Map ----- +----------------------------------------------------+ | ?????????????????????????????????????????????????? | | ?????????????????????????????????????????????????? | | ?????????????????????????????????????????????????? | | ?????????????????????????????????????????????????? | | ?????????????????????????????????????????????????? | | ?????????????????????????????????????????????????? | | ?????????????????????????????????????????????????? | | ?????????????????????????????????????????????????? | | ??????????????????#######??????###???????????????? | | ??????????????##### #????## ##??????????????? | | ?????????????## #??### ##?????????????? | | ????????????## #### #?????????????? | | ????????????# ## #?????????????? | | ????????????## ## #?????????????? | | ?????????????# #### ## ##?????????????? | | ????????????## ###### ### #??????????????? | | ????????????# #?###?# ####???????????? | | ????????????## ###??# #???????????? | | ?????????????## ##?# #???????????? | | ??????????????# ## ### ## #???????????? | | ??????????????# ## ####? ####????????? | | ????????????# ##???? #????????? | | ???????????# ## ### ###????? #????????? | | ??????????## ####### ######??????? #????????? | | ?????????# S #########?? #????????? | | ??????? @ ##? ??????????? | | ??????? ######## #? #???????????? | | ????????## ???????# ## ##??????????? | | ???????????????????# ss ##?????????? | | ???????????????????# ### s #?????????? | | ???????????????????# ??# ##### #?????????? | | ???????????????????# ???####???# #?????????? | | ??????????????????? ?????????? ##?????????? | | ??????????????????#?????????? ##??????????? | | ???????????????????????????? ##???????????? | | ???????????????????????????## #????????????? | | ????????????????????????????## #????????????? | | ?????????????????????????????## #????????????? | | ?????????????????????????????? #????????????? | | ?????????????????????????????? #????????????? | | ????????????????????????????? #????????????? | | ?????????????????????????????## #????????????? | | ??????????????????????????????### ##????????????? | | ?????????????????????????????????###?????????????? | | ?????????????????????????????????????????????????? | | ?????????????????????????????????????????????????? | | ?????????????????????????????????????????????????? | | ?????????????????????????????????????????????????? | | ?????????????????????????????????????????????????? | | ?????????????????????????????????????????????????? | +----------------------------------------------------+ Best States ------------- Heat Dissipation 37 Energy Generation 14 Energy Capacity 250 Matter Stores 221 Matter Capacity 300 Sight Range 16 Terrain Scan Range 14 Terrain Scan Density 10 Evasion (%) 55 Recoil Reduction 2 Item Schematics ----------------- None Robot Schematics ------------------ None Fabricated ------------ Nothing Repaired ---------- Nothing Studied --------- None Alien Tech Used ----------------- None Achievements -------------- Nice Directions, Buddy Challenges ------------ None Game ------ Seed TractorBiometalMallet Manual? 0 Play Time 00:11:58 Cumulative 18.3 hours Start 2026.08.16 @ 00:14:35 End 2026.08.16 @ 00:26:17 Sessions 1 Manual Loads 0 Difficulty Rogue Special Mode None Game No. 63 Rogue 63 Adventurer 0 Explorer 0 Win Type - Total 0 Types 0/0/0/0/0/0/0/0/0/0 Lore% 8 Gallery% 15 Achievement% 14 Wizard Run 0 Options --------- Layout 1 ASCII 0 Keyboard 1 Movement Vi Keybinds 0 Fullscreen 1 Font 64/SmallcapsGlow Map View 50x35 Zoom Use 0% Tactical HUD 1 Map Filters NONE Filters NONE Steam 1 RUN: 4a676454-c075-46c1-9da2-b0159883aaca